Workbook

Sheet Sheet1
A1: 序号 | B1: 房产坐落地址 | C1: 建筑面积（㎡） | D1: 规划功能 | E1: 单价（元/月/㎡） | F1: 月租金（元） | G1: 招租底价(元/年) | H1: 租赁期限 | I1: 产权情况
A2: =MAX(A$1:A1)+1 -> 1 | B2: 一号馆B006 | C2: 189.43 | D2: 商业 | E2: 32 | F2: =E2*C2 -> 6062 | G2: =F2*12 -> 72744 | H2: 六个月至三年 | I2: 有
A3: =MAX(A$1:A2)+1 -> 2 | B3: 一号馆B013-014 | C3: 154.51 | D3: 商业 | E3: 20 | F3: =E3*C3 -> 3090 | G3: =F3*12 -> 37080 | H3: 六个月至三年 | I3: 有
A4: =MAX(A$1:A3)+1 -> 3 | B4: 一号馆B015 | C4: 154.51 | D4: 商业 | E4: 20 | F4: =E4*C4 -> 3090 | G4: =F4*12 -> 37080 | H4: 六个月至三年 | I4: 有
A5: =MAX(A$1:A4)+1 -> 4 | B5: 一号馆B016 | C5: 38.38 | D5: 商业 | E5: 20 | F5: =E5*C5 -> 768 | G5: =F5*12 -> 9216 | H5: 六个月至三年 | I5: 有
A6: =MAX(A$1:A5)+1 -> 5 | B6: 一号馆B105-106 | C6: 142.54 | D6: 商业 | E6: 32 | F6: =E6*C6 -> 4561 | G6: =F6*12 -> 54732 | H6: 六个月至三年 | I6: 有
A7: =MAX(A$1:A6)+1 -> 6 | B7: 一号馆B108 | C7: 74.88 | D7: 商业 | E7: 32 | F7: =E7*C7 -> 2396 | G7: =F7*12 -> 28752 | H7: 六个月至三年 | I7: 有
A8: =MAX(A$1:A7)+1 -> 7 | B8: 一号馆B117 | C8: 115.2 | D8: 商业 | E8: 30 | F8: 3456 | G8: 41472 | H8: 六个月至三年 | I8: 有
A9: =MAX(A$1:A8)+1 -> 8 | B9: 一号馆B118 | C9: 115.2 | D9: 商业 | E9: 30 | F9: 3456 | G9: 41472 | H9: 六个月至三年 | I9: 有
A10: =MAX(A$1:A9)+1 -> 9 | B10: 一号馆B120 | C10: 135.88 | D10: 商业 | E10: 20 | F10: 2718 | G10: 32616 | H10: 六个月至三年 | I10: 有
A11: =MAX(A$1:A10)+1 -> 10 | B11: 一号馆B121 | C11: 113.04 | D11: 商业 | E11: 20 | F11: 2261 | G11: 27132 | H11: 六个月至三年 | I11: 有
A12: =MAX(A$1:A11)+1 -> 11 | B12: 一号馆B122-123 | C12: 76.66 | D12: 商业 | E12: 20 | F12: 1533 | G12: 18396 | H12: 六个月至三年 | I12: 有
A13: =MAX(A$1:A12)+1 -> 12 | B13: 一号馆1009 | C13: 329.04 | D13: 商业 | E13: 48 | F13: 15794 | G13: 189528 | H13: 六个月至三年 | I13: 有
A14: =MAX(A$1:A13)+1 -> 13 | B14: 一号馆1014 | C14: 123.5 | D14: 商业 | E14: 38 | F14: =E14*C14 -> 4693 | G14: =F14*12 -> 56316 | H14: 六个月至三年 | I14: 有
A15: =MAX(A$1:A14)+1 -> 14 | B15: 一号馆1015 | C15: 178.99 | D15: 商业 | E15: 38 | F15: 6802 | G15: 81624 | H15: 六个月至三年 | I15: 有
A16: =MAX(A$1:A15)+1 -> 15 | B16: 一号馆1036-1039 | C16: 368.21 | D16: 商业 | E16: 55 | F16: 20252 | G16: 243024 | H16: 六个月至三年 | I16: 有
A17: =MAX(A$1:A16)+1 -> 16 | B17: 一号馆2-001 | C17: 126 | D17: 商业 | E17: 37 | F17: 4662 | G17: 55944 | H17: 六个月至三年 | I17: 有
A18: =MAX(A$1:A17)+1 -> 17 | B18: 一号馆2001-2003 | C18: 363.37 | D18: 商业 | E18: 46 | F18: 16715 | G18: 200580 | H18: 六个月至三年 | I18: 有
A19: =MAX(A$1:A18)+1 -> 18 | B19: 一号馆2004 | C19: 111.65 | D19: 商业 | E19: 37 | F19: 4131 | G19: 49572 | H19: 六个月至三年 | I19: 有
A20: =MAX(A$1:A19)+1 -> 19 | B20: 一号馆2005 | C20: 118.8 | D20: 商业 | E20: 32 | F20: =E20*C20 -> 3802 | G20: =F20*12 -> 45624 | H20: 六个月至三年 | I20: 有
A21: =MAX(A$1:A20)+1 -> 20 | B21: 一号馆2006 | C21: 158.62 | D21: 商业 | E21: 37 | F21: 5869 | G21: 70428 | H21: 六个月至三年 | I21: 有
A22: =MAX(A$1:A21)+1 -> 21 | B22: 一号馆2007 | C22: 100.78 | D22: 商业 | E22: 37 | F22: 3729 | G22: 44748 | H22: 六个月至三年 | I22: 有
A23: =MAX(A$1:A22)+1 -> 22 | B23: 一号馆2008 | C23: 251.5 | D23: 商业 | E23: 37 | F23: =E23*C23 -> 9306 | G23: =F23*12 -> 111672 | H23: 六个月至三年 | I23: 有
A24: =MAX(A$1:A23)+1 -> 23 | B24: 一号馆2009 | C24: 219.15 | D24: 商业 | E24: 37 | F24: 8109 | G24: 97308 | H24: 六个月至三年 | I24: 有
A25: =MAX(A$1:A24)+1 -> 24 | B25: 一号馆2012 | C25: 224.19 | D25: 商业 | E25: 32 | F25: 7174 | G25: 86088 | H25: 六个月至三年 | I25: 有
A26: =MAX(A$1:A25)+1 -> 25 | B26: 一号馆2013B | C26: 92.92 | D26: 商业 | E26: 32 | F26: 2973 | G26: 35676 | H26: 六个月至三年 | I26: 有
A27: =MAX(A$1:A26)+1 -> 26 | B27: 一号馆2014 | C27: 132.37 | D27: 商业 | E27: 32 | F27: 4236 | G27: 50832 | H27: 六个月至三年 | I27: 有
A28: =MAX(A$1:A27)+1 -> 27 | B28: 一号馆2015 | C28: 179.51 | D28: 商业 | E28: 32 | F28: 5744 | G28: 68928 | H28: 六个月至三年 | I28: 有
A29: =MAX(A$1:A28)+1 -> 28 | B29: 一号馆2017 | C29: 177.55 | D29: 商业 | E29: 37 | F29: 6569 | G29: 78828 | H29: 六个月至三年 | I29: 有
A30: =MAX(A$1:A29)+1 -> 29 | B30: 一号馆2018-2019 | C30: 174.1 | D30: 商业 | E30: 37 | F30: 6442 | G30: 77304 | H30: 六个月至三年 | I30: 有
A31: =MAX(A$1:A30)+1 -> 30 | B31: 一号馆2020 | C31: 248.31 | D31: 商业 | E31: 46 | F31: 11422 | G31: 137064 | H31: 六个月至三年 | I31: 有
A32: =MAX(A$1:A31)+1 -> 31 | B32: 一号馆2021 | C32: 251.53 | D32: 商业 | E32: 46 | F32: 11570 | G32: 138840 | H32: 六个月至三年 | I32: 有
A33: =MAX(A$1:A32)+1 -> 32 | B33: 一号馆2022 | C33: 172.06 | D33: 商业 | E33: 46 | F33: 7915 | G33: 94980 | H33: 六个月至三年 | I33: 有
A34: =MAX(A$1:A33)+1 -> 33 | B34: 一号馆2023-2025 | C34: 246.76 | D34: 商业 | E34: 46 | F34: 11351 | G34: 136212 | H34: 六个月至三年 | I34: 有
A35: =MAX(A$1:A34)+1 -> 34 | B35: 一号馆2026 | C35: 133.54 | D35: 商业 | E35: 37 | F35: 4941 | G35: 59292 | H35: 六个月至三年 | I35: 有
A36: =MAX(A$1:A35)+1 -> 35 | B36: 一号馆3001 | C36: 185.9 | D36: 商业 | E36: 28 | F36: 5205 | G36: 62460 | H36: 六个月至三年 | I36: 有
A37: =MAX(A$1:A36)+1 -> 36 | B37: 一号馆3002 | C37: 177.52 | D37: 商业 | E37: 28 | F37: 4971 | G37: 59652 | H37: 六个月至三年 | I37: 有
A38: =MAX(A$1:A37)+1 -> 37 | B38: 一号馆3003 | C38: 112.28 | D38: 商业 | E38: 25 | F38: 2807 | G38: 33684 | H38: 六个月至三年 | I38: 有
A39: =MAX(A$1:A38)+1 -> 38 | B39: 一号馆3004 | C39: 120.69 | D39: 商业 | E39: 25 | F39: 3017 | G39: 36204 | H39: 六个月至三年 | I39: 有
A40: =MAX(A$1:A39)+1 -> 39 | B40: 一号馆3005 | C40: 154.67 | D40: 商业 | E40: 25 | F40: 3867 | G40: 46404 | H40: 六个月至三年 | I40: 有
A41: =MAX(A$1:A40)+1 -> 40 | B41: 一号馆3006 | C41: 107.73 | D41: 商业 | E41: 25 | F41: 2693 | G41: 32316 | H41: 六个月至三年 | I41: 有
A42: =MAX(A$1:A41)+1 -> 41 | B42: 一号馆3007 | C42: 126.23 | D42: 商业 | E42: 25 | F42: 3156 | G42: 37872 | H42: 六个月至三年 | I42: 有
A43: =MAX(A$1:A42)+1 -> 42 | B43: 一号馆3008-3009 | C43: 232.38 | D43: 商业 | E43: 25 | F43: 5810 | G43: 69720 | H43: 六个月至三年 | I43: 有
A44: =MAX(A$1:A43)+1 -> 43 | B44: 一号馆3010-3012 | C44: 282.96 | D44: 商业 | E44: 25 | F44: 7074 | G44: 84888 | H44: 六个月至三年 | I44: 有
A45: =MAX(A$1:A44)+1 -> 44 | B45: 一号馆3013-3015 | C45: 361.73 | D45: 商业 | E45: 25 | F45: 9043 | G45: 108516 | H45: 六个月至三年 | I45: 有
A46: =MAX(A$1:A45)+1 -> 45 | B46: 一号馆3016-3018 | C46: 349.81 | D46: 商业 | E46: 25 | F46: 8745 | G46: 104940 | H46: 六个月至三年 | I46: 有
A47: =MAX(A$1:A46)+1 -> 46 | B47: 一号馆3019 | C47: 246.78 | D47: 商业 | E47: 28 | F47: 6910 | G47: 82920 | H47: 六个月至三年 | I47: 有
A48: =MAX(A$1:A47)+1 -> 47 | B48: 一号馆3020 | C48: 246.78 | D48: 商业 | E48: 28 | F48: 6910 | G48: 82920 | H48: 六个月至三年 | I48: 有
A49: =MAX(A$1:A48)+1 -> 48 | B49: 一号馆3021 | C49: 174.26 | D49: 商业 | E49: 28 | F49: 4879 | G49: 58548 | H49: 六个月至三年 | I49: 有
A50: =MAX(A$1:A49)+1 -> 49 | B50: 一号馆3025 | C50: 178.92 | D50: 商业 | E50: 25 | F50: 4473 | G50: 53676 | H50: 六个月至三年 | I50: 有
A51: =MAX(A$1:A50)+1 -> 50 | B51: 一号馆3026 | C51: 242.06 | D51: 商业 | E51: 25 | F51: 6052 | G51: 72624 | H51: 六个月至三年 | I51: 有
A52: =MAX(A$1:A51)+1 -> 51 | B52: 一号馆3027 | C52: 152.03 | D52: 商业 | E52: 25 | F52: 3801 | G52: 45612 | H52: 六个月至三年 | I52: 有
A53: =MAX(A$1:A52)+1 -> 52 | B53: 一号馆五楼A区 | C53: 258.65 | D53: 办公 | E53: 28 | F53: 7242 | G53: 86904 | H53: 六个月至三年 | I53: 有
A54: =MAX(A$1:A53)+1 -> 53 | B54: 一号馆五楼B区 | C54: 316.75 | D54: 办公 | E54: 28 | F54: 8869 | G54: 106428 | H54: 六个月至三年 | I54: 有
A55: =MAX(A$1:A54)+1 -> 54 | B55: 一号馆七楼 | C55: 666.08 | D55: 办公 | E55: 28 | F55: =E55*C55 -> 18650 | G55: =F55*12 -> 223800 | H55: 六个月至三年 | I55: 有
A56: =MAX(A$1:A55)+1 -> 55 | B56: 一号馆九楼 | C56: 666.08 | D56: 办公 | E56: 28 | F56: 18650 | G56: 223800 | H56: 六个月至三年 | I56: 有
A57: =MAX(A$1:A56)+1 -> 56 | B57: 三号馆3-110 | C57: 307.37 | D57: 商业 | E57: 64 | F57: 19672 | G57: 236064 | H57: 六个月至二十个月 | I57: 有
A58: =MAX(A$1:A57)+1 -> 57 | B58: 四号馆4-101 | C58: 313.4 | D58: 商业 | E58: 64 | F58: 20058 | G58: 240696 | H58: 六个月至二十个月 | I58: 有
A59: =MAX(A$1:A58)+1 -> 58 | B59: 四号馆4-102 | C59: 303.06 | D59: 商业 | E59: 64 | F59: 19396 | G59: 232752 | H59: 六个月至二十个月 | I59: 有
A60: =MAX(A$1:A59)+1 -> 59 | B60: 四号馆4-103 | C60: 311.55 | D60: 商业 | E60: 64 | F60: 19939 | G60: 239268 | H60: 六个月至二十个月
A61: =MAX(A$1:A60)+1 -> 60 | B61: 四号馆4-104 | C61: 311.55 | D61: 商业 | E61: 64 | F61: 19939 | G61: 239268 | H61: 六个月至二十个月
A62: =MAX(A$1:A61)+1 -> 61 | B62: 四号馆4-107 | C62: 308.91 | D62: 商业 | E62: 64 | F62: =E62*C62 -> 19770 | G62: =F62*12 -> 237240 | H62: 六个月至二十个月 | I62: 有
A63: =MAX(A$1:A62)+1 -> 62 | B63: 四号馆4-108 | C63: 311.55 | D63: 商业 | E63: 64 | F63: =E63*C63 -> 19939 | G63: =F63*12 -> 239268 | H63: 六个月至二十个月 | I63: 有
A64: =MAX(A$1:A63)+1 -> 63 | B64: 四号馆4-112、4-113 | C64: 420.92 | D64: 商业 | E64: 69 | F64: =E64*C64 -> 29043 | G64: =F64*12 -> 348516 | H64: 六个月至二十个月 | I64: 有
A65: =MAX(A$1:A64)+1 -> 64 | B65: 金山组团5-10幢一层1区3、3A号 | C65: 262.78 | D65: 商业 | E65: 40 | F65: =E65*C65 -> 10511 | G65: =F65*12 -> 126132 | H65: 六个月至三年 | I65: 有
A66: =MAX(A$1:A65)+1 -> 65 | B66: 金山组团5-10幢一层1区7号 | C66: 63.37 | D66: 商业 | E66: 30 | F66: 1901 | G66: 22812 | H66: 六个月至三年 | I66: 有
A67: =MAX(A$1:A66)+1 -> 66 | B67: 金山组团5-10幢一层1区8号 | C67: 57.09 | D67: 商业 | E67: 30 | F67: 1713 | G67: 20556 | H67: 六个月至三年 | I67: 有
A68: =MAX(A$1:A67)+1 -> 67 | B68: 金山组团5-10幢一层1区7A号 | C68: 60.92 | D68: 商业 | E68: 30 | F68: 1828 | G68: 21936 | H68: 六个月至三年 | I68: 有
A69: =MAX(A$1:A68)+1 -> 68 | B69: 金山组团5-10幢一层1区8A号 | C69: 32.8 | D69: 商业 | E69: 30 | F69: 984 | G69: 11808 | H69: 六个月至三年 | I69: 有
A70: =MAX(A$1:A69)+1 -> 69 | B70: 金山组团5-10幢一层1区9B号 | C70: 45.54 | D70: 商业 | E70: 30 | F70: 1366 | G70: 16392 | H70: 六个月至三年 | I70: 有
A71: =MAX(A$1:A70)+1 -> 70 | B71: 金山组团5-10幢一层1区10B号 | C71: 40.29 | D71: 商业 | E71: 30 | F71: 1209 | G71: 14508 | H71: 六个月至三年 | I71: 有
A72: =MAX(A$1:A71)+1 -> 71 | B72: 金山组团5-10幢一层1区11A号 | C72: 23.33 | D72: 商业 | E72: 30 | F72: 700 | G72: 8400 | H72: 六个月至三年 | I72: 有
A73: =MAX(A$1:A72)+1 -> 72 | B73: 金山组团5-10幢一层1区11B号 | C73: 25.14 | D73: 商业 | E73: 30 | F73: 754 | G73: 9048 | H73: 六个月至三年 | I73: 有
A74: =MAX(A$1:A73)+1 -> 73 | B74: 金山组团5-10幢一层1区16号 | C74: 458 | D74: 商业 | E74: 42 | F74: =E74*C74 -> 19236 | G74: =F74*12 -> 230832 | H74: 六个月至三年 | I74: 有
A75: =MAX(A$1:A74)+1 -> 74 | B75: 金山组团5-10幢一层8区10号 | C75: 14 | D75: 商业 | E75: 30 | F75: 420 | G75: 5040 | H75: 六个月至三年 | I75: 有
A76: =MAX(A$1:A75)+1 -> 75 | B76: 金山组团5-10幢一层8区13-20号 | C76: 199 | D76: 商业 | E76: 30 | F76: 5970 | G76: 71640 | H76: 六个月至三年 | I76: 有
B77: 金山组团5-10幢一层8区13-20号卫生间 | C77: 3 | D77: 商业 | E77: 30 | F77: 90 | G77: 1080
A78: =MAX(A$1:A77)+1 -> 76 | B78: 五号馆特陶二楼B区 | C78: 82.74 | D78: 商业 | E78: 32 | F78: 2648 | G78: 31776 | H78: 六个月至三年 | I78: 有
A79: =MAX(A$1:A78)+1 -> 77 | B79: 五号馆特陶二楼C区 | C79: 301.64 | D79: 商业 | E79: 32 | F79: =E79*C79 -> 9652 | G79: =F79*12 -> 115824 | H79: 六个月至三年 | I79: 有
A80: =MAX(A$1:A79)+1 -> 78 | B80: 五号馆特陶三楼B区 | C80: 317.33 | D80: 商业 | E80: 32 | F80: =E80*C80 -> 10155 | G80: =F80*12 -> 121860 | H80: 六个月至三年 | I80: 有
A81: =MAX(A$1:A80)+1 -> 79 | B81: 五号馆特陶大楼四楼408-414 | C81: 187.35 | D81: 办公 | E81: 32 | F81: =E81*C81 -> 5995 | G81: =F81*12 -> 71940 | H81: 六个月至三年 | I81: 有
A82: =MAX(A$1:A81)+1 -> 80 | B82: 五号馆505 | C82: 26 | D82: 办公 | E82: 32 | F82: =E82*C82 -> 832 | G82: =F82*12 -> 9984 | H82: 六个月至三年 | I82: 有
A83: =MAX(A$1:A82)+1 -> 81 | B83: 五号馆514 | C83: 22 | D83: 办公 | E83: 28 | F83: =E83*C83 -> 616 | G83: =F83*12 -> 7392 | H83: 六个月至三年 | I83: 有
A84: =MAX(A$1:A83)+1 -> 82 | B84: 五号馆516 | C84: 22 | D84: 办公 | E84: 28 | F84: =E84*C84 -> 616 | G84: =F84*12 -> 7392 | H84: 六个月至三年 | I84: 有
